fUSD/lending_fUSD_20260126
["ID","MTS","AMOUNT","RATE_DAILY","PERIOD"]
[403635057,1769436633204,-151.0,0.00013903,2]
[403635058,1769436633214,-151.0,0.00013903,2]
[403635059,1769436633224,-151.0,0.00013903,2]
[403635060,1769436633233,-500.0,0.00013903,2]
[403635061,1769436633244,-151.0,0.00013903,2]
[403635062,1769436633254,-500.0,0.00013903,2]
[403635063,1769436633264,-151.0,0.00013903,2]
[403635064,1769436633274,-151.0,0.00013903,2]
[403635065,1769436633284,-500.0,0.00013903,2]
[403635066,1769436633293,-151.0,0.00013903,2]
[403635067,1769436633311,-151.0,0.00013903,2]
[403635068,1769436633320,-500.0,0.00013903,2]
[403635069,1769436633334,-151.0,0.00013903,2]
[403635070,1769436633354,-151.0,0.00013903,2]
[403635071,1769436633364,-500.0,0.00013903,2]
[403635072,1769436633374,-151.0,0.00013903,2]
[403635073,1769436633385,-151.0,0.00013903,2]
[403635074,1769436633395,-151.0,0.00013903,2]
[403635075,1769436633405,-151.0,0.00013903,2]
[403635076,1769436633415,-500.0,0.00013903,2]
[403635077,1769436633424,-151.0,0.00013903,2]
[403635078,1769436633434,-151.0,0.00013903,2]
[403635079,1769436633444,-500.0,0.00013903,2]
[403635080,1769436633454,-151.0,0.00013903,2]
[403635081,1769436633470,-151.0,0.00013903,2]
[403635082,1769436633481,-553.73551314,0.00013903,2]
[403635083,1769436633490,-151.0,0.00013903,2]
[403635084,1769436633500,-151.0,0.00013903,2]
[403635085,1769436633510,-500.0,0.00013903,2]
[403635086,1769436633520,-151.0,0.00013903,2]
[403635087,1769436633530,-151.0,0.00013903,2]
[403635088,1769436633540,-296.58475368,0.00013903,2]
[403635089,1769436633549,-390.36170643,0.0001391,2]
[403635090,1769436633559,-52552.7,0.00013911,2]
[403635091,1769436633570,-150.0,0.00014003,2]
[403635092,1769436633581,-263.97,0.0001407,2]
[403635093,1769436633593,-150.0,0.00014411,2]
[403635094,1769436633603,-150.0,0.00014411,2]
[403635095,1769436633613,-500.0,0.00014451,2]
[403635096,1769436633623,-1666.49,0.00014538,2]
[403635097,1769436633633,-1666.49,0.00014561,2]
[403635098,1769436633643,-1666.49,0.00014584,2]
[403635099,1769436633654,-1666.49,0.00014607,2]
[403635100,1769436633664,-1666.49,0.0001463,2]
[403635101,1769436633674,-1666.49,0.00014653,2]
[403635102,1769436633684,-1666.49,0.00014676,2]
[403635103,1769436633693,-1666.49,0.00014699,2]
[403635104,1769436633703,-1666.49,0.00014722,2]
[403635105,1769436633713,-1666.49,0.00014745,2]
[403635106,1769436633724,-1666.49,0.00014768,2]
[403635107,1769436633734,-150.0,0.00014774,2]
[403635108,1769436633744,-1666.49,0.00014791,2]
[403635109,1769436633754,-1666.49,0.00014814,2]
[403635110,1769436633764,-1666.49,0.00014837,2]
[403635111,1769436633775,-1666.49,0.0001486,2]
[403635112,1769436633784,-1666.49,0.00014883,2]
[403635113,1769436633794,-1666.49,0.00014906,2]
[403635114,1769436633804,-1666.49,0.00014929,2]
[403635115,1769436633814,-1666.49,0.00014952,2]
[403635116,1769436633823,-1666.49,0.00014975,2]
[403635117,1769436633834,-1680.0,0.00015067,2]
[403635118,1769436633843,-282.28,0.00015164,2]
[403635119,1769436633854,-691.3,0.00015257,2]
[403635120,1769436633864,-161.0,0.000153,2]
[403635121,1769436633873,-161.0,0.000153,2]
[403635122,1769436633882,-1000.0,0.00015331,2]
[403635123,1769436633892,-4829.2589827,0.00015498,2]
[403635124,1769436633902,-2500.0,0.00015499,2]
[403635125,1769436633911,-341.43510135,0.000155,2]
[403635126,1769436633920,-880.30535683,0.000155,2]
[403635127,1769436633930,-20201.71472385,0.000155,2]
[403635128,1769436633940,-364.96963547,0.000155,2]
[403635129,1769436633954,-233.67697047,0.000155,2]
[403635130,1769436633964,-691.3,0.00015531,2]
[403635131,1769436633974,-250.0,0.00015555,2]
[403635132,1769436633984,-151.0,0.00015596,2]
[403635133,1769436633994,-273.25228918,0.00015598,2]
[403635134,1769436634003,-500.0,0.00015598,2]
[403635135,1769436634012,-507.4251083,0.00015598,2]
[403635136,1769436634024,-500.0,0.00015598,2]
[403635137,1769436634034,-500.0,0.00015598,2]
[403635138,1769436634043,-500.0,0.00015598,2]
[403635139,1769436634053,-645.18737721,0.00015598,2]
[403635140,1769436634063,-500.0,0.00015598,2]
[403635141,1769436634072,-500.0,0.00015598,2]
[403635142,1769436634082,-500.0,0.00015598,2]
[403635143,1769436634091,-500.0,0.00015598,2]
[403635144,1769436634101,-500.0,0.00015598,2]
[403635145,1769436634110,-500.0,0.00015598,2]
[403635146,1769436634119,-500.0,0.00015598,2]
[403635147,1769436634128,-500.0,0.00015598,2]
[403635148,1769436634138,-500.0,0.00015598,2]
[403635149,1769436634147,-181.45092145,0.00015598,2]
[403635150,1769436634157,-500.0,0.00015598,2]
[403635151,1769436634167,-500.0,0.00015598,2]
[403635152,1769436634176,-510.98377513,0.00015598,2]
[403635153,1769436634186,-150.0,0.00015598,2]
[403635154,1769436634195,-500.0,0.00015598,2]
[403635155,1769436634205,-559865.35089701,0.00015599,2]
[403635156,1769436634218,-440134.64910299,0.00015599,2]
[403635157,1769436634227,-161.0,0.000157,2]
[403635158,1769436634237,-161.0,0.000157,2]
[403635159,1769436634247,-161.0,0.000157,2]
[403635160,1769436634257,-1852.42,0.00015711,2]
[403635161,1769436634267,-681.002463,0.00015757,2]
[403635162,1769436634277,-20201.71472377,0.00015767,2]
[403635163,1769436634287,-1000.0,0.00015799,2]
[403635164,1769436634296,-691.3,0.00015805,2]
[403635165,1769436634306,-233.67697047,0.00015843,2]
[403635166,1769436634315,-7199.0,0.00015845,2]
[403635167,1769436634325,-500.0,0.00015898,2]
[403635168,1769436634338,-500.0,0.00015898,2]
[403635169,1769436634348,-455.72018722,0.00015898,2]
[403635170,1769436634359,-500.0,0.00015898,2]
[403635171,1769436634369,-646.08605547,0.00015898,2]
[403635172,1769436634380,-500.0,0.00015898,2]
[403635173,1769436634389,-500.0,0.00015898,2]
[403635174,1769436634399,-500.0,0.00015898,2]
[403635175,1769436634408,-500.0,0.00015898,2]
[403635176,1769436634418,-500.0,0.00015898,2]
[403635177,1769436634429,-376.6,0.00015898,2]
[403635178,1769436634438,-500.0,0.00015898,2]
[403635179,1769436634448,-500.0,0.00015898,2]
[403635180,1769436634457,-500.0,0.00015898,2]
[403635181,1769436634467,-500.0,0.00015898,2]
[403635182,1769436634477,-500.0,0.00015898,2]
[403635183,1769436634486,-500.0,0.00015898,2]
[403635184,1769436634496,-500.0,0.00015898,2]
[403635185,1769436634505,-500.0,0.00015898,2]
[403635186,1769436634515,-609.70342047,0.00015898,2]
[403635187,1769436634525,-500.0,0.00015898,2]
[403635188,1769436634535,-500.0,0.00015898,2]
[403635189,1769436634544,-500.0,0.00015898,2]
[403635190,1769436634554,-500.0,0.00015898,2]
[403635191,1769436634569,-364.96963547,0.000159,2]
[403635192,1769436634579,-16289.98,0.00015941,2]
[403635193,1769436634589,-500.0,0.00015945,2]
[403635194,1769436634598,-3442.48960295,0.0001596,2]
[403635195,1769436634608,-200.0,0.00016,2]
[403635196,1769436634617,-150.0,0.00016,2]
[403635197,1769436634626,-20201.71472377,0.00016033,2]
[403635198,1769436634635,-691.3,0.00016079,2]
[403635199,1769436634644,-341.43510132,0.000161,2]
[403635200,1769436634652,-150.0,0.000161,2]
[403635201,1769436634661,-8090.3287823,0.00016111,2]
[403635202,1769436634669,-233.67697047,0.00016186,2]
[403635203,1769436634678,-648.41,0.0001621,2]
[403635204,1769436634687,-880.30535681,0.0001625,2]
[403635206,1769436634697,-161.0,0.000163,2]
[403635207,1769436634712,-161.0,0.000163,2]
[403635208,1769436634735,-364.96963547,0.000163,2]
[403635209,1769436634757,-20201.71472377,0.000163,2]
[403635210,1769436634779,-691.3,0.00016353,2]
[403635211,1769436634802,-8090.3287823,0.00016367,2]
[403635212,1769436634826,-837.0,0.000164,2]
[403635213,1769436634865,-500.0,0.00016438,2]
[403635214,1769436634903,-500.0,0.00016438,2]
[403635215,1769436634941,-500.0,0.00016438,2]
[403635216,1769436634979,-500.0,0.00016438,2]
[403635217,1769436635016,-500.0,0.00016438,2]
[403635218,1769436635040,-504.28373524,0.00016438,2]
[403635219,1769436635049,-500.0,0.00016438,2]
[403635220,1769436635058,-500.0,0.00016438,2]
[403635221,1769436635069,-500.0,0.00016438,2]
[403635222,1769436635080,-500.0,0.00016438,2]
[403635223,1769436635091,-500.0,0.00016438,2]
[403635224,1769436635099,-500.0,0.00016438,2]
[403635225,1769436635108,-500.0,0.00016438,2]
[403635226,1769436635118,-500.0,0.00016438,2]
[403635227,1769436635128,-500.0,0.00016438,2]
[403635228,1769436635138,-500.0,0.00016438,2]
[403635229,1769436635149,-370.13124126,0.00016438,2]
[403635230,1769436635159,-500.0,0.00016438,2]
[403635231,1769436635170,-500.0,0.00016438,2]
[403635232,1769436635179,-500.0,0.00016438,2]
[403635233,1769436635189,-500.0,0.00016438,2]
[403635234,1769436635199,-500.0,0.00016438,2]
[403635235,1769436635208,-500.0,0.00016438,2]
[403635236,1769436635217,-500.0,0.00016438,2]
[403635237,1769436635227,-500.0,0.00016438,2]
[403635238,1769436635236,-500.0,0.00016438,2]
[403635239,1769436635246,-500.0,0.00016438,2]
[403635240,1769436635255,-500.0,0.00016438,2]
[403635241,1769436635266,-500.0,0.00016438,2]
[403635242,1769436635275,-500.0,0.00016438,2]
[403635243,1769436635285,-500.0,0.00016438,2]
[403635244,1769436635295,-500.0,0.00016438,2]
[403635245,1769436635304,-500.0,0.00016438,2]
[403635246,1769436635313,-500.0,0.00016438,2]
[403635247,1769436635323,-500.0,0.00016438,2]
[403635248,1769436635335,-1830.27,0.00016438,2]
[403635249,1769436635346,-1830.27,0.00016438,2]
[403635250,1769436635355,-1830.27,0.00016438,2]
[403635251,1769436635365,-1830.27,0.00016438,2]
[403635252,1769436635376,-1830.27,0.00016438,2]
[403635253,1769436635385,-233.67697047,0.00016529,2]
[403635254,1769436635394,-20201.71472377,0.00016567,2]
[403635255,1769436635404,-406.00720455,0.0001662,2]
[403635256,1769436635415,-194.88703005,0.0001662,2]
[403635257,1769436635424,-8090.3287823,0.00016622,2]
[403635258,1769436635433,-691.3,0.00016627,2]
[403635259,1769436635443,-1000.0,0.00016628,2]
[403635260,1769436635452,-161.0,0.000167,2]
[403635261,1769436635461,-161.0,0.000167,2]
[403635262,1769436635470,-341.43510132,0.000167,2]
[403635263,1769436635479,-364.96963547,0.000167,2]
[403635264,1769436635488,-831.0,0.0001672,2]
[403635265,1769436635498,-500.0,0.00016732,2]
[403635266,1769436635507,-1000.0,0.00016817,2]
[403635267,1769436635517,-20201.71472377,0.00016833,2]
[403635268,1769436635526,-233.67697047,0.00016871,2]
[403635269,1769436635536,-8090.3287823,0.00016878,2]
[403635270,1769436635546,-500.0,0.00016884,2]
[403635271,1769436635555,-500.0,0.00016884,2]
[403635272,1769436635872,-500.0,0.00016884,2]
[403635273,1769436635892,-500.0,0.00016884,2]
[403635274,1769436635913,-691.3,0.00016901,2]
[403635275,1769436635935,-1830.27,0.00016921,2]
[403635276,1769436635959,-299.99,0.00016922,4]
[403635277,1769436635982,-2904.77,0.00016922,2]
[403635278,1769436636008,-336.01,0.00016922,2]
[403635279,1769436636030,-150.99,0.00016922,2]
[403635280,1769436636051,-464.0,0.00016922,2]
[403635281,1769436636075,-48278.97,0.00016922,2]
[403635282,1769436636100,-9999.99,0.00016922,2]
[403635283,1769436636124,-6781.94,0.00016922,2]
[403635284,1769436636148,-9999.99,0.00016922,2]
[403635285,1769436636171,-3648.34,0.00016922,2]
[403635286,1769436636193,-3272.88,0.00016922,2]
[403635287,1769436636215,-3561.06,0.00016922,2]
[403635288,1769436636240,-150.0,0.00016938,2]
[403635289,1769436636263,-880.30535681,0.00016999,2]
[403635290,1769436636288,-250.0,0.00017,2]
[403635291,1769436636311,-174.61919141,0.00017099,2]
[403635292,1769436636335,-721.12765535,0.00017099,2]
[403635293,1769436636359,-151.0,0.00017099,2]
[403635294,1769436636382,-250.0,0.00017099,2]
[403635295,1769436636405,-250.0,0.00017099,2]
[403635296,1769436636431,-250.0,0.00017099,2]
[403635297,1769436636455,-250.0,0.00017099,2]
[403635298,1769436636476,-322.6107,0.00017099,2]
[403635299,1769436636497,-250.0,0.00017099,2]
[403635300,1769436636521,-250.0,0.00017099,2]
[403635301,1769436636543,-250.0,0.00017099,2]
[403635302,1769436636564,-250.0,0.00017099,2]
[403635303,1769436636580,-250.0,0.00017099,2]
[403635304,1769436636591,-250.0,0.00017099,2]
[403635305,1769436636602,-250.0,0.00017099,2]
[403635306,1769436636614,-3543.0,0.00017099,2]
[403635307,1769436636625,-1760.28984501,0.00017099,2]
[403635308,1769436636635,-854.2589148,0.00017099,2]
[403635309,1769436636645,-267.11720438,0.00017099,2]
[403635310,1769436636655,-196.9272253,0.00017099,2]
[403635311,1769436636665,-578.20924308,0.00017099,2]
[403635312,1769436636676,-151.0,0.00017099,2]
[403635313,1769436636686,-500.0,0.00017099,2]
[403635314,1769436636696,-500.0,0.00017099,2]
[403635315,1769436636706,-500.0,0.00017099,2]
[403635316,1769436636717,-500.0,0.00017099,2]
[403635317,1769436636727,-500.0,0.00017099,2]
[403635318,1769436636738,-500.0,0.00017099,2]
[403635319,1769436636748,-500.0,0.00017099,2]
[403635320,1769436636758,-500.0,0.00017099,2]
[403635321,1769436636768,-500.0,0.00017099,2]
[403635322,1769436636778,-500.0,0.00017099,2]
[403635323,1769436636788,-500.0,0.00017099,2]
[403635324,1769436636806,-250.0,0.00017099,2]
[403635325,1769436636820,-250.0,0.00017099,2]
[403635326,1769436636830,-250.0,0.00017099,2]
[403635327,1769436636840,-250.0,0.00017099,2]
[403635328,1769436636850,-250.0,0.00017099,2]
[403635329,1769436636860,-250.0,0.00017099,2]
[403635330,1769436636870,-250.0,0.00017099,2]
[403635331,1769436636880,-250.0,0.00017099,2]
[403635332,1769436636890,-250.0,0.00017099,2]
[403635333,1769436636900,-250.0,0.00017099,2]
[403635334,1769436636910,-250.0,0.00017099,2]
[403635335,1769436636922,-250.0,0.00017099,2]
[403635336,1769436636932,-250.0,0.00017099,2]
[403635337,1769436636943,-250.0,0.00017099,2]
[403635338,1769436636953,-250.0,0.00017099,2]
[403635339,1769436636963,-250.0,0.00017099,2]
[403635340,1769436636973,-250.0,0.00017099,2]
[403635341,1769436636982,-250.0,0.00017099,2]
[403635342,1769436636992,-250.0,0.00017099,2]
[403635343,1769436637002,-250.0,0.00017099,2]
[403635344,1769436637012,-250.0,0.00017099,2]
[403635345,1769436637022,-250.0,0.00017099,2]
[403635346,1769436637031,-1504.09105446,0.00017099,2]
[403635347,1769436637040,-364.96963547,0.000171,2]
[403635348,1769436637050,-20201.71472377,0.000171,2]
[403635349,1769436637060,-263.97,0.00017117,2]
[403635350,1769436637069,-8090.3287823,0.00017133,2]
[403635351,1769436637078,-158.77791206,0.00017158,2]
[403635352,1769436637089,-691.36,0.00017175,2]
[403635353,1769436637098,-233.67697047,0.00017214,2]
[403635354,1769436637108,-175.96,0.00017239,2]
[403635355,1769436637118,-1000.0,0.00017248,2]
[403635356,1769436637128,-3485.578,0.00017256,2]
[403635357,1769436637137,-1269.0,0.00017256,2]
[403635358,1769436637147,-308.478,0.00017256,2]
[403635359,1769436637156,-341.43510132,0.000173,2]
[403635360,1769436637166,-163.0,0.0001736,2]
[403635361,1769436637176,-160.0,0.0001736,2]
[403635362,1769436637185,-20201.71472377,0.00017367,2]
[403635363,1769436637195,-1204.0,0.00017384,2]
[403635364,1769436637205,-916.0,0.00017384,2]
[403635365,1769436637214,-6570.0,0.00017384,2]
[403635366,1769436637225,-8090.3287823,0.00017389,2]
[403635367,1769436637235,-152.21,0.000174,2]
[403635368,1769436637244,-152.21,0.000174,2]
[403635369,1769436637254,-1000.0,0.00017432,2]
[403635370,1769436637263,-1000.0,0.00017432,2]
[403635371,1769436637273,-245.0,0.00017437,2]
[403635372,1769436637283,-163.0,0.000175,3]
[403635373,1769436637292,-164.0,0.000175,3]
[403635374,1769436637302,-364.96963547,0.000175,2]
[403635375,1769436637311,-233.67697047,0.00017557,2]
[403635376,1769436637322,-245.0,0.00017571,2]
[403635377,1769436637335,-504.32915606,0.00017612,2]
[403635378,1769436637344,-500.0,0.00017612,2]
[403635379,1769436637355,-245.0,0.00017632,2]
[403635380,1769436637367,-20201.71472377,0.00017633,2]
[403635381,1769436637379,-150.0,0.00017635,2]
[403635382,1769436637388,-300.0,0.00017635,2]
[403635383,1769436637398,-150.0,0.00017635,2]
[403635384,1769436637408,-150.0,0.00017635,2]
[403635385,1769436637418,-150.0,0.00017635,2]
[403635386,1769436637431,-610.91297427,0.0001764,2]
[403635387,1769436637441,-8090.3287823,0.00017644,2]
[403635388,1769436637451,-181.08010149,0.00017647,2]
[403635389,1769436637461,-298.09541604,0.00017647,2]
[403635390,1769436637471,-885.86649465,0.00017647,2]
[403635391,1769436637480,-245.0,0.00017649,2]
[403635392,1769436637489,-163.0,0.0001768,2]
[403635393,1769436637498,-150.0,0.00017699,2]
[403635394,1769436637507,-500.0,0.00017699,2]
[403635395,1769436637517,-150.0,0.00017699,2]
[403635396,1769436637526,-150.0,0.00017699,2]
[403635397,1769436637536,-524.0,0.00017699,2]
[403635398,1769436637545,-849.0,0.00017699,2]
[403635399,1769436637554,-500.0,0.00017699,2]
[403635400,1769436637564,-500.0,0.00017699,2]
[403635401,1769436637573,-152.45791979,0.00017699,2]
[403635402,1769436637582,-150.62026844,0.00017699,2]
[403635403,1769436637592,-151.82706047,0.00017699,2]
[403635404,1769436637601,-150.93281041,0.00017699,2]
[403635405,1769436637611,-150.65129016,0.00017699,2]
[403635406,1769436637621,-150.0,0.00017699,2]
[403635407,1769436637630,-150.0,0.00017699,2]
[403635408,1769436637640,-293.0,0.00017699,2]
[403635409,1769436637649,-500.0,0.00017699,2]
[403635410,1769436637659,-500.0,0.00017699,2]
[403635411,1769436637669,-150.0,0.00017699,2]
[403635412,1769436637679,-500.0,0.00017699,2]
[403635413,1769436637688,-500.0,0.00017699,2]
[403635415,1769436637698,-500.0,0.00017699,2]
[403635417,1769436637708,-633.0,0.00017699,2]
[403635418,1769436637717,-500.0,0.00017699,2]
[403635419,1769436637731,-150.0,0.00017699,2]
[403635420,1769436637742,-150.0,0.00017699,2]
[403635421,1769436637751,-150.0,0.00017699,2]
[403635422,1769436637762,-3128.464,0.00017709,2]
[403635423,1769436637772,-165.113,0.00017709,2]
[403635424,1769436637781,-150.0,0.00017754,2]
[403635425,1769436637791,-500.0,0.00017754,2]
[403635426,1769436637802,-176.27480134,0.00017754,2]
[403635427,1769436637812,-150.0,0.00017754,2]
[403635428,1769436637822,-524.0,0.00017754,2]
[403635429,1769436637832,-849.0,0.00017754,2]
[403635430,1769436637842,-500.0,0.00017754,2]
[403635431,1769436637852,-500.0,0.00017754,2]
[403635432,1769436637862,-150.0,0.00017754,2]
[403635433,1769436637872,-500.0,0.00017754,2]
[403635434,1769436637882,-500.0,0.00017754,2]
[403635435,1769436637892,-500.0,0.00017754,2]
[403635436,1769436637904,-500.0,0.00017754,2]
[403635437,1769436637913,-500.0,0.00017754,2]
[403635438,1769436637923,-633.0,0.00017754,2]
[403635439,1769436637933,-500.0,0.00017754,2]
[403635440,1769436637943,-1830.27,0.00017808,2]
[403635441,1769436637952,-203.49058695,0.00017809,2]
[403635442,1769436637962,-325.38474243,0.00017809,2]
[403635443,1769436637972,-200.0,0.00017809,2]
[403635444,1769436637982,-524.0,0.00017809,2]
[403635445,1769436637993,-849.0,0.00017809,2]
[403635446,1769436638004,-500.0,0.00017809,2]
[403635447,1769436638015,-500.0,0.00017809,2]
[403635448,1769436638026,-150.0,0.00017809,2]
[403635449,1769436638037,-156.18320436,0.00017809,2]
[403635450,1769436638047,-500.0,0.00017809,2]
[403635451,1769436638058,-500.0,0.00017809,2]
[403635452,1769436638068,-500.0,0.00017809,2]
[403635453,1769436638078,-500.0,0.00017809,2]
[403635454,1769436638091,-633.0,0.00017809,2]
[403635455,1769436638101,-500.0,0.00017809,2]
[403635456,1769436638111,-2000.0,0.0001782,2]
[403635457,1769436638121,-2000.0,0.0001782,2]
[403635458,1769436638131,-2000.0,0.0001782,2]
[403635459,1769436638141,-2000.0,0.0001782,2]
[403635461,1769436638151,-200.0,0.00017856,2]
[403635463,1769436638160,-150.0,0.00017856,2]
[403635465,1769436638170,-524.0,0.00017863,2]
[403635467,1769436638180,-849.0,0.00017863,2]
[403635469,1769436638190,-500.0,0.00017863,2]
[403635471,1769436638200,-500.0,0.00017863,2]
[403635474,1769436638210,-150.0,0.00017863,2]
[403635475,1769436638219,-500.0,0.00017863,2]
[403635477,1769436638230,-500.0,0.00017863,2]
[403635479,1769436638240,-500.0,0.00017863,2]
[403635481,1769436638249,-500.0,0.00017863,2]
[403635483,1769436638259,-633.0,0.00017863,2]
[403635485,1769436638268,-500.0,0.00017863,2]
[403635487,1769436638278,-263.97,0.00017867,2]
[403635489,1769436638287,-161.0,0.000179,3]
[403635491,1769436638297,-161.0,0.000179,3]
[403635493,1769436638309,-1000.0,0.000179,2]
[403635495,1769436638319,-8090.3287823,0.000179,2]
[403635497,1769436638329,-341.43510132,0.000179,2]
[403635499,1769436638342,-364.96963547,0.000179,2]
[403635501,1769436638352,-20201.71472377,0.000179,2]
[403635503,1769436638361,-233.67697047,0.000179,2]
[403635506,1769436638375,-190.53,0.00017909,2]
[403635508,1769436638385,-245.0,0.00017917,2]
[403635511,1769436638396,-500.0,0.00017917,2]
[403635513,1769436638408,-524.0,0.00017918,2]
[403635517,1769436638418,-849.0,0.00017918,2]
[403635519,1769436638428,-604.87785058,0.00017918,2]
[403635522,1769436638438,-500.0,0.00017918,2]
[403635525,1769436638449,-200.0,0.00017918,2]
[403635528,1769436638458,-500.0,0.00017918,2]
[403635532,1769436638469,-500.0,0.00017918,2]
[403635535,1769436638478,-500.0,0.00017918,2]
[403635538,1769436638488,-500.0,0.00017918,2]
[403635542,1769436638498,-633.0,0.00017918,2]
[403635544,1769436638509,-500.0,0.00017918,2]
[403635548,1769436638520,-256.48,0.00017936,2]
[403635551,1769436638530,-524.0,0.00017973,2]
[403635554,1769436638541,-849.0,0.00017973,2]
[403635557,1769436638555,-500.0,0.00017973,2]
[403635559,1769436638566,-500.0,0.00017973,2]
[403635562,1769436638577,-153.21260792,0.00017973,2]
[403635564,1769436638591,-500.0,0.00017973,2]
[403635566,1769436638602,-500.0,0.00017973,2]
[403635569,1769436638613,-633.0,0.00017973,2]
[403635571,1769436638624,-500.0,0.00017973,2]
[403635573,1769436638636,-150.0,0.00017973,2]
[403635575,1769436638646,-150.0,0.00017973,2]
[403635577,1769436638657,-1500.0,0.0001798,2]
[403635579,1769436638671,-1500.0,0.0001798,2]
[403635581,1769436638681,-681.002463,0.0001799,2]
[403635583,1769436638692,-681.002463,0.0001799,2]
[403635585,1769436638703,-151.0,0.00017994,2]
[403635587,1769436638715,-1830.27,0.00017995,2]
[403635589,1769436638726,-169581.1951576,0.00017996,2]
[403635591,1769436638736,-1830.27,0.00017996,2]
[403635593,1769436638746,-1830.27,0.00017996,2]
[403635595,1769436638758,-1830.27,0.00017996,2]
[403635597,1769436638770,-1830.27,0.00017996,2]
[403635599,1769436638782,-397603.4339789,0.00017997,2]
[403635601,1769436638792,-125772.4386739,0.00017997,2]
[403635603,1769436638803,-6466.3206934,0.00017997,2]
[403635605,1769436638814,-635712.5196589,0.00017997,2]
[403635607,1769436638825,-3915.7038408,0.00017997,2]
[403635609,1769436638836,-151.0,0.00017997,2]
[403635611,1769436638846,-500.0,0.00017998,2]
[403635613,1769436638857,-500.0,0.00017998,2]
[403635615,1769436638866,-500.0,0.00017998,2]
[403635617,1769436638876,-500.0,0.00017998,2]
[403635619,1769436638886,-1830.27,0.00017998,2]
[403635621,1769436638895,-500.0,0.00017999,2]
[403635623,1769436638905,-500.0,0.00017999,2]
[403635625,1769436638915,-240.90734351,0.00017999,2]
[403635627,1769436638925,-300.0,0.00017999,2]
[403635629,1769436638935,-300.0,0.00017999,2]
[403635631,1769436638946,-666.0,0.00017999,2]
[403635633,1769436638956,-1830.27,0.00017999,2]
[403635635,1769436638966,-1830.27,0.00017999,2]
[403635637,1769436638976,-1830.27,0.00017999,2]
[403635638,1769436638986,-1830.27,0.00017999,2]
[403635640,1769436638996,-1830.27,0.00017999,2]
[403635642,1769436639006,-1830.27,0.00017999,2]
[403635644,1769436639016,-1830.27,0.00017999,2]
[403635646,1769436639027,-1830.27,0.00017999,2]
[403635648,1769436639038,-1830.27,0.00017999,2]
[403635650,1769436639049,-1830.27,0.00017999,2]
[403635653,1769436639059,-1830.29561324,0.00017999,2]
[403635654,1769436639070,-307.80574855,0.00017999,2]
[403635657,1769436639081,-297.10912903,0.00018,2]
[403635659,1769436639092,-1721440.95345291,0.00018,2]
[403635661,1769436639102,-686336.92382289,0.00018,2]
[403635662,1769436639113,-520346.97194235,0.00018,2]
[403635826,1769436640920,-165.27,0.0001644,2]
[403635828,1769436640930,-622.09629238,0.0001726,2]
[403635830,1769436640941,-377.90370762,0.0001726,2]
[403635832,1769436640950,-2964.56255973,0.00017384,2]
[403635834,1769436640961,-1866.43744027,0.00017384,2]
[403635836,1769436640971,-2442.0,0.00017384,2]
[403635838,1769436640980,-152.21,0.000174,2]
[403635840,1769436640990,-152.21,0.000174,2]